bitfinex/quotes_ETHUSD_20250517
["timestamp","ask_amount","ask_price","bid_price","bid_amount"]
[1747525526881,7.594,2474.2,2474.1,0.38236971]
[1747525531694,7.595,2474.3,2474.1,0.38236971]
[1747525532000,15.188,2474.3,2474.1,0.38236971]
[1747525534614,0.5144,2474.8,2474.5,4.04113225]
[1747525534828,7.592,2474.7,2474.6,4.04094772]
[1747525535099,21.49697036,2475.3,2474.8,4.04059049]
[1747525535100,8.1064,2475.3,2474.8,4.04059049]
[1747525535262,14.60406656,2475.5,2475.0,4.86348824]
[1747525535462,7.592,2475.4,2475.0,0.8231]
[1747525536100,7.592,2475.4,2475.1,0.38236971]
[1747525536503,10.05,2475.5,2475.1,4.42260484]
[1747525536704,17.642,2475.5,2475.2,4.03998935]
[1747525537908,10.04608807,2475.9,2475.0,0.8231]
[1747525537909,2.56048807,2475.9,2475.0,0.8231]
[1747525538118,11.6302671,2475.7,2475.2,4.0399863]
[1747525538286,7.591,2475.7,2475.2,4.03998779]
[1747525539292,4.03969207,2475.5,2475.0,4.8635015]
[1747525539493,7.591,2475.7,2475.0,6.59107583]
[1747525539494,11.63029326,2475.7,2475.0,6.59107583]
[1747525539692,4.03959361,2475.5,2475.0,4.8635015]
[1747525540515,4.03959361,2475.5,2475.1,0.38157231]
[1747525541213,0.5144,2475.6,2475.1,4.42180006]
[1747525541810,0.5144,2475.6,2475.1,0.38157231]
[1747525542311,4.03962391,2475.5,2475.0,4.86342058]
[1747525542482,4.55390385,2475.6,2475.1,5.72014489]
[1747525544383,0.5144,2475.6,2475.2,4.04006675]
[1747525544811,4.03918615,2475.8,2475.3,4.03990381]
[1747525545116,4.03918615,2475.8,2475.1,5.72014258]
[1747525545117,15.181,2475.8,2475.4,4.82131511]
[1747525546282,19.2202192,2475.8,2475.4,0.7816]
[1747525546497,11.6322192,2475.8,2475.4,0.7816]
[1747525547511,15.18,2475.8,2475.4,5.7074711]
[1747525547904,19.21913202,2475.8,2475.4,1.66774965]
[1747525550515,4.03955196,2475.6,2475.4,1.66774965]
[1747525550721,4.03955196,2475.6,2475.4,0.7816]
[1747525551322,4.03955196,2475.6,2475.1,4.04014311]
[1747525551323,4.03955196,2475.6,2475.2,0.7892]
[1747525551817,4.03928213,2475.7,2475.2,0.7892]
[1747525552544,4.03951019,2475.6,2475.2,0.7892]
[1747525552701,4.03951019,2475.6,2475.3,0.48293431]
[1747525555426,4.03964862,2475.5,2475.2,0.7892]
[1747525555618,4.03993043,2475.3,2475.0,8.3711]
[1747525555818,4.03984181,2475.4,2475.0,0.7791]
[1747525556013,4.03984181,2475.4,2475.0,1.29117526]
[1747525556803,4.55407036,2475.5,2475.0,5.33153806]
[1747525557130,4.03967036,2475.5,2475.0,5.33153806]
[1747525557496,4.03950997,2475.6,2475.1,4.04020476]
[1747525557732,4.03942478,2475.6,2475.1,4.04020476]
[1747525560917,4.03966571,2475.5,2475.0,5.3314894]
[1747525561117,4.03949223,2475.6,2475.1,4.04023428]
[1747525561308,4.03949223,2475.6,2475.0,5.3315757]
[1747525561640,4.03949223,2475.6,2475.1,4.04013877]
[1747525562561,4.03949223,2475.6,2475.2,0.38171987]
[1747525563348,0.5144,2475.7,2475.2,0.38171987]
[1747525563349,4.03991435,2475.3,2475.2,0.38171987]
[1747525563524,11.62291435,2475.3,2475.2,0.38171987]
[1747525564272,4.04033019,2475.1,2474.8,0.8073]
[1747525564765,4.040193,2475.2,2474.8,0.8073]
[1747525565367,4.040637,2474.9,2474.7,0.47637789]
[1747525565665,4.04049094,2475.0,2474.8,0.38256397]
[1747525565873,4.04056729,2474.9,2474.8,0.38256397]
[1747525566166,4.04036113,2475.1,2474.8,0.38256397]
[1747525566368,4.04042405,2475.0,2474.8,0.38256397]
[1747525566532,4.04056729,2474.9,2474.8,0.38256397]
[1747525567847,4.04014006,2475.2,2474.8,0.38256397]
[1747525568389,4.04045069,2475.0,2474.8,0.38256397]
[1747525568538,15.168,2475.3,2474.8,0.38256397]
[1747525569161,4.04054623,2475.0,2474.9,0.38256397]
[1747525570086,15.168,2475.3,2474.9,0.38256397]
[1747525570271,7.583,2475.2,2475.0,0.8073]
[1747525570741,11.62299325,2475.3,2475.0,0.8073]
[1747525570948,4.04008189,2475.2,2475.0,0.8073]
[1747525571264,4.04040404,2475.0,2474.6,1.28317789]
[1747525571476,4.04065383,2474.9,2474.7,0.47637789]
[1747525571882,12.13713056,2474.8,2474.7,0.47637789]
[1747525572246,19.72313056,2474.8,2474.7,0.47637789]
[1747525573348,15.168,2474.8,2474.7,0.47637789]
[1747525574777,15.168,2474.8,2474.6,0.8068]
[1747525575679,19.20874076,2474.8,2474.3,0.8244]
[1747525575887,4.04096873,2474.7,2474.3,0.8244]
[1747525576181,4.04096873,2474.7,2474.3,1.38931668]
[1747525577080,19.20880764,2474.8,2474.3,5.43083]
[1747525577282,19.20882504,2474.8,2474.3,1.38931668]
[1747525577481,19.20882504,2474.8,2474.2,0.47637789]
[1747525577482,4.04130766,2474.5,2474.2,0.47637789]
[1747525577783,0.5144,2474.7,2474.2,0.47637789]
[1747525577955,4.04122044,2474.5,2474.4,0.38213712]
[1747525579888,12.04122044,2474.5,2474.4,0.38213712]
[1747525580192,13.99419382,2474.5,2474.4,0.38213712]
[1747525580549,12.04171045,2474.2,2474.1,0.47637789]
[1747525580750,27.21071045,2474.2,2474.1,0.47637789]
[1747525581894,27.72511045,2474.2,2474.1,0.47637789]
[1747525582248,4.04245304,2473.8,2473.4,0.8244]
[1747525582753,8.0,2474.1,2473.4,5.35416667]
[1747525582953,4.0421812,2474.0,2473.4,5.35407829]
[1747525583175,4.0422464,2473.9,2473.4,5.35407829]
[1747525583393,4.04237733,2473.8,2473.4,1.31114995]
[1747525583579,8.0,2474.1,2473.4,1.31114995]
[1747525583780,4.04271459,2473.6,2473.4,0.8244]
[1747525584293,4.04260559,2473.7,2473.4,0.8244]
[1747525584891,4.04269081,2473.6,2473.1,0.8204]
[1747525585199,4.04306296,2473.4,2473.1,0.8204]
[1747525585574,4.04292435,2473.5,2473.1,0.8204]
[1747525586793,15.166,2473.7,2473.1,6.10850008]
[1747525587089,7.583,2473.6,2473.3,0.8204]
[1747525587902,11.62569248,2473.6,2473.3,0.8204]
[1747525588480,7.583,2473.6,2473.3,0.8204]
[1747525588675,11.62572934,2473.6,2473.3,0.8204]
[1747525589418,7.583,2473.6,2473.1,0.8204]
[1747525589712,7.583,2473.6,2472.6,0.47637789]
[1747525589713,4.0436205,2473.1,2472.7,0.8204]
[1747525589914,4.04342989,2473.2,2472.7,4.864556]
[1747525591204,4.04375433,2473.0,2472.7,0.8204]
[1747525591774,7.583,2473.1,2472.7,0.8204]
[1747525592107,7.583,2473.1,2472.7,4.864479]
[1747525592804,7.583,2473.1,2472.8,4.04399394]
[1747525594619,7.583,2473.1,2472.7,0.8204]
[1747525594620,4.0438368,2472.9,2472.7,0.8204]
[1747525594925,4.04425953,2472.7,2472.3,0.8314]
[1747525595591,4.04408806,2472.8,2472.3,4.87618721]
[1747525595999,4.0441748,2472.7,2472.3,0.8314]
[1747525596919,4.04406485,2472.8,2472.3,4.87618384]
[1747525597119,8.0974,2473.1,2472.3,4.8761096]
[1747525597423,8.0974,2473.1,2472.7,4.04404382]
[1747525597424,7.584,2473.0,2472.7,4.04404382]
[1747525597650,8.0,2473.3,2472.5,0.7916]
[1747525597824,10.05,2473.4,2473.0,0.7916]
[1747525597981,10.05,2473.4,2473.3,4.04318117]
[1747525598178,6.86412287,2473.6,2473.4,0.7916]
[1747525598630,10.90686926,2473.6,2473.0,0.7916]
[1747525598783,4.04300594,2473.5,2473.0,4.83527002]
[1747525598982,10.90689583,2473.6,2473.1,4.04343556]
[1747525600117,6.86412287,2473.6,2473.2,4.04332136]
[1747525600286,6.86412287,2473.6,2473.1,4.04350814]
[1747525600583,10.90684114,2473.6,2473.1,4.04350814]
[1747525601442,6.86412287,2473.6,2473.3,4.0430701]
[1747525601766,14.44712287,2473.6,2473.3,4.0430701]
[1747525602058,14.44712287,2473.6,2473.4,0.7613]
[1747525602413,14.44712287,2473.6,2473.2,4.04324612]
[1747525602414,18.48983769,2473.6,2473.2,0.7613]
[1747525604457,14.44712287,2473.6,2473.3,4.04316787]
[1747525604617,14.44712287,2473.6,2473.2,4.8046383]
[1747525604813,14.44712287,2473.6,2473.2,5.68946287]
[1747525605650,14.44712287,2473.6,2473.2,1.64612457]
[1747525605852,4.04291565,2473.5,2473.2,1.64612457]
[1747525606038,18.4898998,2473.6,2473.2,1.64612457]
[1747525606534,4.0428544,2473.5,2473.2,1.64612457]
[1747525606851,4.0428544,2473.5,2473.2,0.7613]
[1747525606852,4.04294725,2473.5,2473.2,0.7613]
[1747525608452,4.04304541,2473.4,2473.2,0.7613]
[1747525609961,14.44612287,2473.6,2473.2,4.80456006]
[1747525610359,6.86412287,2473.6,2473.2,4.80456006]
[1747525610657,7.582,2473.7,2473.4,4.04285444]
[1747525610827,7.582,2473.7,2473.3,4.52355325]
[1747525611228,4.04281139,2473.6,2473.3,0.48045601]
[1747525611530,4.04281139,2473.6,2473.2,0.7613]
[1747525611531,4.04285425,2473.5,2473.4,0.38281348]
[1747525611735,4.04277618,2473.6,2473.4,0.38281348]
[1747525612360,12.13898281,2473.7,2473.4,0.38281348]
[1747525612559,4.04278148,2473.6,2473.4,0.38281348]
[1747525612758,7.586,2473.8,2473.4,0.38281348]
[1747525613066,7.582,2473.7,2473.5,0.7686]
[1747525613526,18.05,2473.9,2473.6,4.04269081]
[1747525613726,7.582,2473.8,2473.6,4.04269081]
[1747525613967,7.582,2473.8,2473.5,4.81139245]
[1747525614473,7.582,2473.8,2473.5,0.7686]
[1747525615256,7.582,2473.8,2473.6,0.38272733]
[1747525616667,7.581,2473.9,2473.6,0.38272733]
[1747525616870,7.581,2473.9,2473.5,4.81134652]
[1747525617169,7.581,2473.9,2473.5,5.74864687]
[1747525617368,21.49995528,2474.1,2473.6,4.04259055]
[1747525617571,7.581,2473.9,2473.6,4.04259055]
[1747525617749,11.62327621,2473.9,2473.5,1.70590035]
[1747525617950,11.62327621,2473.9,2473.5,0.7686]
[1747525618132,11.62327621,2473.9,2473.5,4.81141898]
[1747525618133,7.581,2473.9,2473.5,4.81141898]
[1747525618876,11.62320955,2473.9,2473.5,0.7686]
[1747525619051,11.62320955,2473.9,2473.5,4.81143906]
[1747525619369,7.581,2473.9,2473.6,4.04265178]
[1747525619574,7.581,2473.9,2473.5,4.81138313]
[1747525620574,21.50001047,2474.1,2473.5,5.74868975]
[1747525620777,15.161,2474.0,2473.6,4.04258039]
[1747525621076,15.161,2474.0,2473.7,0.8]
[1747525621270,15.161,2474.0,2473.7,4.84252667]
[1747525621478,15.161,2474.0,2473.7,0.8]
[1747525622285,22.09165635,2474.3,2473.7,0.8]
[1747525622286,10.05,2474.3,2473.8,0.8223]
[1747525622583,15.161,2474.9,2474.5,4.04112288]
[1747525622749,15.161,2474.9,2474.6,4.04104261]
[1747525623075,7.581,2474.9,2474.7,4.86313849]
[1747525623273,7.581,2474.9,2474.7,0.8223]
[1747525623848,7.579,2475.1,2474.7,0.8223]
[1747525624186,7.579,2475.1,2474.7,4.86311235]
[1747525625074,11.61926681,2475.1,2474.7,0.8223]
[1747525625282,11.61926681,2475.1,2474.4,4.04131973]
[1747525625283,7.579,2475.1,2474.4,0.8223]
[1747525625468,4.04064907,2474.9,2474.4,4.86363159]
[1747525625664,4.04064907,2474.9,2474.4,5.75414147]
[1747525626057,4.04064907,2474.9,2474.6,0.8]
[1747525626382,4.04046449,2475.0,2474.6,0.8]
[1747525626677,4.04072966,2474.9,2474.4,0.8223]
[1747525626894,4.04075391,2474.8,2474.4,0.8223]
[1747525630385,4.04059018,2474.9,2474.4,0.8223]
[1747525630584,4.04080951,2474.8,2474.4,0.8223]
[1747525633573,11.61680951,2474.8,2474.4,0.8223]
[1747525633971,7.578,2474.7,2474.0,0.7607]
[1747525634171,4.04172767,2474.2,2473.9,0.47637789]
[1747525635091,4.04174946,2474.2,2473.9,0.47637789]
[1747525635293,4.04203718,2474.0,2473.9,0.47637789]
[1747525635482,4.55633549,2474.1,2473.9,0.47637789]
[1747525637193,0.5144,2474.1,2473.7,4.0425095]
[1747525637395,8.0,2474.6,2474.1,4.0418136]
[1747525637396,12.04114155,2474.6,2474.1,4.0418136]
[1747525637596,7.576,2474.4,2474.1,4.0418136]
[1747525638005,7.576,2474.4,2474.0,4.04195423]
[1747525638503,7.576,2474.7,2474.3,4.04145366]
[1747525640422,11.61690216,2474.7,2474.2,4.59160197]
[1747525641412,11.61690216,2474.7,2474.2,5.53296534]
[1747525641816,7.576,2474.7,2474.3,4.04151886]
[1747525642008,7.576,2474.7,2474.2,5.53296534]
[1747525642688,7.576,2474.7,2474.3,4.04145942]
[1747525643689,11.61692817,2474.7,2474.2,5.53300512]
[1747525644085,11.6169752,2474.7,2474.2,4.04168596]
[1747525645284,7.576,2474.7,2474.3,4.04150788]
[1747525645594,7.578,2474.8,2474.3,4.04150788]
[1747525645794,7.575,2474.7,2474.4,4.04128236]
[1747525646122,7.575,2474.7,2474.5,4.0411617]
[1747525647004,7.575,2474.7,2474.4,4.04131305]
[1747525648032,7.575,2474.7,2474.5,4.04121542]
[1747525648323,7.575,2474.7,2474.4,4.04130062]
[1747525648526,8.0,2474.9,2474.5,4.04120091]
[1747525648726,22.60470343,2475.1,2474.6,0.8136]
[1747525648727,10.05,2475.1,2474.6,0.8136]
[1747525649027,10.05,2475.1,2474.8,4.04062511]
[1747525649322,12.12933386,2475.3,2474.8,4.04062511]
[1747525649522,7.575,2475.2,2474.8,4.04062511]
[1747525649727,11.61510728,2475.2,2474.7,4.04080732]
[1747525650532,11.61510728,2475.2,2474.8,0.3814188]
[1747525650824,7.575,2475.2,2474.8,0.3814188]
[1747525651025,4.04024149,2475.1,2474.8,0.3814188]
[1747525651626,0.5144,2475.0,2474.8,0.3814188]
[1747525651847,4.55487413,2475.0,2474.5,4.04111215]
[1747525651994,4.55487413,2475.0,2474.5,4.97866922]
[1747525652507,0.5144,2475.0,2474.6,4.04100515]
[1747525653530,4.55483227,2475.0,2474.5,4.97870351]
[1747525653738,4.55483227,2475.0,2474.7,0.38162399]
[1747525654633,4.04073056,2474.8,2474.7,0.38162399]
[1747525654807,12.12913056,2474.8,2474.7,0.38162399]
[1747525655133,20.12913056,2474.8,2474.7,0.38162399]
[1747525655332,4.04122044,2474.5,2474.4,0.47637789]
[1747525655532,11.61522044,2474.5,2474.4,0.47637789]
[1747525655825,12.12962044,2474.5,2474.4,0.47637789]
[1747525656731,12.12962044,2474.5,2474.2,0.38203948]
[1747525656732,4.04150466,2474.4,2474.2,0.38203948]
[1747525657627,4.04150466,2474.4,2473.9,0.8167]
[1747525657828,8.0884,2474.5,2473.9,0.8167]
[1747525658034,4.04140072,2474.4,2473.9,4.8588228]
[1747525658233,12.12971521,2474.5,2474.0,4.04200953]
[1747525658538,7.574,2474.5,2474.0,4.04200953]
[1747525658900,7.574,2474.5,2474.2,4.04169043]
[1747525659233,4.04097602,2474.7,2474.0,4.04200953]
[1747525659234,15.574,2474.7,2474.3,4.85820614]
[1747525659728,15.574,2474.7,2474.4,4.04130294]
[1747525660031,8.0,2474.7,2474.4,4.0413038]
[1747525660201,10.05,2474.8,2474.5,4.04121724]
[1747525661035,10.05,2474.8,2474.4,4.93127937]
[1747525661237,10.05,2474.8,2474.4,4.0413285]
[1747525661401,14.09075085,2474.8,2474.3,4.85816805]
[1747525661601,14.09075085,2474.8,2474.5,0.38203597]
[1747525662651,10.05,2474.8,2474.5,0.38203597]
[1747525663437,12.12899872,2474.9,2474.5,0.38203597]
[1747525663602,12.12899872,2474.9,2474.4,4.04138325]
[1747525664002,4.04074454,2474.8,2474.3,4.85815777]
[1747525664302,4.04074454,2474.8,2474.3,6.55327681]
[1747525665438,4.04074454,2474.8,2474.4,0.38217947]
[1747525666002,4.04113593,2474.6,2474.4,0.38217947]
[1747525666204,4.04096565,2474.7,2474.4,0.38217947]
[1747525667141,4.04106395,2474.6,2474.5,0.38217947]
[1747525668007,4.55546395,2474.6,2474.5,0.38217947]
[1747525668740,12.13046395,2474.6,2474.1,0.47637789]
[1747525669117,4.04122044,2474.5,2474.1,0.47637789]
[1747525669733,12.13054908,2474.6,2474.1,4.51824966]
[1747525669939,8.0894,2474.6,2474.2,4.04165379]
[1747525670736,12.13048263,2474.6,2474.1,4.51816221]
[1747525671353,12.13048263,2474.6,2474.3,0.38238727]
[1747525671554,7.575,2474.6,2474.3,5.21920514]
[1747525671720,15.148,2474.6,2474.4,4.0413523]
[1747525672050,4.04069879,2474.9,2474.4,4.0413523]
[1747525672251,15.573,2474.8,2474.4,4.0413523]
[1747525672418,19.61375295,2474.8,2474.3,6.14524696]
[1747525672760,4.04098219,2474.7,2474.3,2.10377161]
[1747525672918,19.61388429,2474.8,2474.4,0.38238727]
[1747525673359,4.04092338,2474.7,2474.4,0.38238727]
[1747525674052,4.04107065,2474.6,2474.4,0.38238727]
[1747525674259,4.04122044,2474.5,2474.4,0.38238727]
[1747525675529,12.04122044,2474.5,2474.4,0.38238727]
[1747525675730,4.04187381,2474.1,2474.0,0.47637789]
[1747525675971,11.61487381,2474.1,2474.0,0.47637789]
[1747525677569,11.61487381,2474.1,2473.9,0.38240344]
[1747525677733,4.04203718,2474.0,2473.9,0.38240344]
[1747525678134,12.55643718,2474.0,2473.9,0.38240344]
[1747525679467,4.04269081,2473.6,2473.5,0.47637789]
[1747525679650,19.18869081,2473.6,2473.5,0.47637789]
[1747525679827,27.70309081,2473.6,2473.5,0.47637789]
[1747525680026,45.15909081,2473.6,2473.5,0.47637789]
[1747525680626,80.18137081,2473.6,2473.5,0.47637789]
[1747525681333,4.04464298,2472.5,2471.9,1.25237789]
[1747525681533,4.04474198,2472.4,2471.9,2.28137996]
[1747525681733,4.04474198,2472.4,2471.9,6.32681232]
[1747525682868,7.574,2472.5,2471.9,2.28137996]
[1747525683168,7.574,2472.5,2471.9,1.25237789]
[1747525683169,8.0,2472.5,2471.9,1.25237789]
[1747525683330,7.574,2472.6,2472.1,4.04505238]
[1747525683943,11.61832985,2472.6,2472.1,4.04505238]
[1747525684165,4.04432985,2472.6,2472.1,4.04505238]
[1747525684386,7.575,2472.6,2472.1,4.04505238]
[1747525684565,7.575,2472.6,2472.1,4.93168836]
[1747525685675,4.55829406,2472.9,2472.1,0.88663598]
[1747525685676,4.55829869,2472.9,2472.1,0.88663598]
[1747525685855,8.0,2473.0,2472.6,4.04424418]
[1747525686058,8.0,2472.8,2472.6,0.7893]
[1747525686444,4.55786204,2473.2,2472.7,4.04415802]
[1747525686737,15.151,2473.1,2472.8,4.0439825]
[1747525686937,4.04307652,2473.4,2472.8,4.0439825]
[1747525686938,4.04309782,2473.4,2472.8,4.0439825]
[1747525687147,4.04309782,2473.4,2472.9,4.04376902]
[1747525687348,7.576,2473.3,2473.0,0.7893]
[1747525687683,4.04285425,2473.5,2473.0,4.83294512]
[1747525687848,7.576,2473.3,2473.0,0.7893]
[1747525688151,19.61920378,2473.3,2473.0,0.7893]
[1747525688472,15.576,2473.3,2473.0,0.7893]
[1747525689273,19.61919324,2473.3,2473.0,0.7893]
[1747525689475,7.576,2473.5,2473.1,4.04337586]
[1747525689796,0.5144,2473.9,2473.1,4.04337586]
[1747525689797,7.576,2474.1,2473.5,0.7893]
[1747525690085,11.7078845,2474.0,2473.5,4.83203986]
[1747525691376,7.66583777,2474.0,2473.5,0.7893]
[1747525691553,7.577,2474.1,2473.7,4.04239279]
[1747525692279,7.577,2474.1,2473.5,0.7893]
[1747525692574,4.04212262,2474.0,2473.5,4.8321393]
[1747525692782,4.04223304,2473.9,2473.5,0.7893]
[1747525692980,7.577,2474.1,2473.5,4.83211351]
[1747525693177,11.61893822,2474.1,2473.6,4.04264269]
[1747525693375,7.577,2474.2,2473.9,4.04217991]
[1747525693376,15.157,2474.2,2473.9,4.04217991]
[1747525693675,8.0,2474.2,2474.0,4.04200784]
[1747525693883,8.0,2474.2,2474.0,4.84090784]
[1747525694085,8.0,2474.2,2474.0,0.7989]
[1747525694282,7.582,2474.3,2474.0,0.7989]
[1747525696284,4.04185872,2474.2,2473.7,0.7567]
[1747525696482,7.582,2474.3,2473.4,4.79959638]
[1747525696483,4.04233609,2473.9,2473.4,4.79959638]
[1747525696640,4.04233609,2473.9,2473.4,0.7567]
[1747525696978,12.04173921,2474.2,2473.4,0.7567]
[1747525697165,4.0424441,2473.8,2473.4,0.7567]
[1747525697370,4.04214296,2474.0,2473.5,4.04274626]
[1747525697575,8.0,2474.2,2473.5,0.88425209]
[1747525697877,7.589,2474.1,2473.8,0.7567]
[1747525698686,7.589,2474.1,2473.5,0.7567]
[1747525698883,11.63088864,2474.1,2473.6,4.04261753]
[1747525699450,7.589,2474.1,2473.7,4.04251887]
[1747525699953,10.05,2474.3,2473.7,0.88420609]
[1747525700161,10.05,2474.3,2473.8,0.7567]
[1747525700382,10.05,2474.3,2474.2,4.04171045]
[1747525700594,10.05,2474.9,2474.2,0.8216]
[1747525700774,7.609,2474.8,2474.4,4.04130313]
[1747525700974,7.609,2474.8,2474.3,4.04145958]
[1747525701487,4.04069852,2474.9,2474.3,0.89047152]
[1747525701791,11.65564962,2474.9,2474.4,4.04128106]
[1747525701958,8.0,2474.8,2474.4,4.04128106]
[1747525703676,12.04076228,2474.8,2474.3,0.89047152]
[1747525703858,8.0,2474.8,2474.3,0.89047152]
[1747525704058,4.04091668,2474.7,2474.3,0.89047152]
[1747525704302,8.0,2474.8,2474.3,4.9320004]
[1747525704601,8.0,2474.8,2474.4,0.57536004]
[1747525704805,12.04084172,2474.8,2474.4,0.57536004]
[1747525704962,8.0,2474.8,2474.2,4.86326463]
[1747525705160,8.0,2474.8,2474.3,4.0415471]
[1747525705563,8.0,2474.5,2473.7,4.04245124]
[1747525705801,15.249,2474.4,2473.8,0.7815]
[1747525706097,4.04196304,2474.1,2473.8,0.7815]
[1747525706301,4.04191452,2474.1,2473.8,0.7815]
[1747525707401,4.04191452,2474.1,2473.7,0.45188291]
[1747525708297,4.04123617,2474.5,2473.8,4.56988316]
[1747525708298,12.04155151,2474.3,2473.8,4.56988316]
[1747525708500,8.0,2474.3,2473.9,4.04219741]
[1747525708689,8.0,2474.5,2474.0,4.04187847]
[1747525709017,7.67,2474.7,2474.2,4.04167852]
[1747525709172,7.67,2474.7,2474.3,0.7815]
[1747525709515,11.710899,2474.7,2474.3,0.7815]
[1747525712716,4.04117977,2474.6,2474.3,0.7815]
[1747525713021,7.67,2474.7,2474.1,0.7758]
[1747525713183,4.04146924,2474.4,2474.1,0.7758]
[1747525713385,4.04156292,2474.3,2473.8,5.34567838]
[1747525713604,4.04156292,2474.3,2473.9,1.70541782]
[1747525714222,4.55586745,2474.4,2473.9,5.74760241]
[1747525715635,8.5144,2474.8,2473.9,1.70541782]
[1747525715788,4.04106251,2474.6,2474.2,0.792]
[1747525715988,4.04148857,2474.4,2474.0,0.38095482]
[1747525717033,4.04129987,2474.5,2474.0,4.42291203]
[1747525717428,4.04143221,2474.4,2473.9,4.83414474]
[1747525717633,4.04130258,2474.5,2474.0,4.52542956]
[1747525718234,8.5144,2474.8,2474.1,4.04176892]
[1747525718379,8.5144,2474.8,2474.0,0.48341447]
[1747525718380,7.668,2474.4,2474.0,0.48341447]
[1747525718584,7.668,2474.4,2474.1,4.0417375]
[1747525718814,7.668,2474.4,2474.2,4.04168358]
[1747525719012,7.668,2474.4,2474.2,4.93656807]
[1747525719730,7.668,2474.4,2474.2,0.89488449]
[1747525720022,7.668,2474.4,2474.1,4.04178357]
[1747525720928,7.668,2474.4,2474.2,4.04170879]
[1747525721225,7.668,2474.4,2474.1,4.04178494]
[1747525722833,7.668,2474.4,2474.2,4.42380407]
[1747525723026,7.668,2474.4,2474.2,0.38222866]
[1747525724234,7.668,2474.4,2474.0,4.52535903]
[1747525724396,7.668,2474.4,2474.1,0.56329028]
[1747525725034,7.668,2474.4,2474.1,4.6051268]
[1747525725996,7.668,2474.4,2474.2,4.04155784]
[1747525726331,7.668,2474.4,2474.2,4.0416291]
[1747525727433,7.666,2474.5,2474.2,4.0416291]
[1747525727855,7.666,2474.5,2474.3,0.3824909]
[1747525728035,7.645,2474.6,2474.3,4.42400971]
[1747525728219,7.643,2474.6,2474.3,5.21600971]
[1747525728420,11.68407143,2474.6,2474.3,1.1744909]
[1747525729157,11.68407143,2474.6,2474.3,0.792]
[1747525730047,7.643,2474.6,2474.3,0.792]
[1747525730261,7.643,2474.6,2474.3,4.83352955]
[1747525730452,7.643,2474.6,2474.3,5.81236695]
[1747525730753,21.72664155,2474.9,2474.4,4.42396768]
[1747525731240,4.04075695,2474.8,2474.4,0.3826544]
[1747525731611,11.67663876,2474.9,2474.4,4.42403139]
[1747525732347,4.04114063,2474.6,2474.4,0.3826544]
[1747525732733,4.04114063,2474.6,2474.5,0.3826544]
[1747525735261,4.55554063,2474.6,2474.5,0.3826544]
[1747525735557,12.55554063,2474.6,2474.5,0.3826544]
[1747525736756,22.60554063,2474.6,2474.5,0.3826544]
[1747525736923,4.0415471,2474.3,2474.2,0.47637789]
[1747525737122,19.8629471,2474.3,2474.2,0.47637789]
[1747525738359,0.5144,2474.1,2473.4,0.7678]
[1747525738533,4.04262641,2473.7,2473.4,0.7678]
[1747525739136,7.639,2473.8,2473.3,0.47637789]
[1747525739341,4.0430177,2473.4,2473.3,0.47637789]
[1747525739659,12.0430177,2473.4,2473.3,0.47637789]
[1747525739821,12.5574177,2473.4,2473.3,0.47637789]
[1747525741264,27.8854177,2473.4,2473.3,0.47637789]
[1747525741763,8.5144,2473.4,2473.3,0.47637789]
[1747525741965,7.67,2473.4,2472.8,4.84146313]
[1747525742124,7.67,2473.4,2472.9,4.52787985]
[1747525742461,7.67,2473.4,2473.0,4.04367165]
[1747525742659,7.67,2473.4,2472.9,0.48414631]
[1747525742880,11.71310713,2473.4,2472.8,4.84147256]
[1747525743034,7.67,2473.4,2472.8,4.84147256]
[1747525743234,7.67,2473.4,2472.9,4.04374564]
[1747525743948,7.67,2473.4,2472.8,0.7976]
[1747525744158,7.67,2473.4,2473.1,4.04342398]
[1747525744362,7.67,2473.4,2472.8,0.7976]
[1747525744558,4.04318405,2473.3,2472.8,0.7976]
[1747525744776,12.04334465,2473.2,2472.8,0.7976]
[1747525746089,8.0,2473.3,2472.9,4.04377676]
[1747525746392,10.05,2473.5,2472.9,0.88853452]
[1747525746544,8.0,2473.3,2472.8,4.84148645]
[1747525746891,15.353,2473.4,2473.0,4.04365218]
[1747525747901,15.353,2473.4,2472.8,0.7976]
[1747525748081,4.04339462,2473.2,2472.8,0.7976]
[1747525748381,4.04339462,2473.2,2472.7,4.04415381]
[1747525748540,29.44609225,2473.4,2472.7,0.88861821]
[1747525748740,29.44609225,2473.4,2472.9,4.04372541]
[1747525749392,10.05,2473.4,2473.0,4.04359445]
[1747525749564,8.0,2473.4,2473.1,0.7976]
[1747525750044,8.0,2473.4,2473.1,4.84100297]
[1747525750243,8.0,2473.4,2473.2,4.04330771]
[1747525750480,7.686,2473.5,2473.2,4.04330771]
[1747525750778,7.686,2473.5,2473.2,4.04334465]
[1747525751272,7.686,2473.5,2473.3,4.04316581]
[1747525752059,7.686,2473.5,2473.4,4.0430177]
[1747525752265,7.686,2473.5,2473.3,4.93154262]
[1747525752575,17.9704,2474.1,2473.5,0.8125]
[1747525752774,13.3182339,2474.5,2473.5,0.8125]
[1747525752775,7.686,2474.2,2473.5,4.8552999]
[1747525752981,8.0,2474.1,2473.6,4.04269081]
[1747525753193,8.0,2474.1,2473.7,4.04247981]
[1747525753970,7.691,2474.3,2474.1,4.04186858]
[1747525754305,7.669,2474.4,2474.1,4.04175062]
[1747525754714,3.2682339,2474.5,2474.0,0.85291609]
[1747525755006,3.2682339,2474.5,2474.2,4.04171045]
[1747525755212,7.696,2474.8,2474.4,4.04127612]
[1747525755431,7.669,2474.9,2474.5,4.86509513]
[1747525755592,15.365,2474.9,2474.5,4.86509513]
[1747525755916,15.365,2474.9,2474.5,0.824]
[1747525756199,15.365,2474.9,2474.5,4.86521247]
[1747525759529,15.365,2474.9,2474.5,0.824]
[1747525761330,4.04132801,2474.5,2474.0,4.0419518]
[1747525761523,4.04113516,2474.6,2473.9,4.80415344]
[1747525761726,4.04113516,2474.6,2474.1,4.04187381]
[1747525761727,7.719,2474.4,2474.1,4.04187381]
[1747525762260,7.719,2474.4,2474.0,4.52236604]
[1747525762389,7.719,2474.4,2474.1,4.04186961]
[1747525763932,7.719,2474.4,2473.6,4.52818106]
[1747525763933,16.1814,2474.3,2473.2,1.40420006]
[1747525764241,4.0418894,2474.1,2473.6,4.04264213]